[Event "*** Titled Tuesday Blitz"]
[Site "Chess.com"]
[Date "2021.02.09"]
[Round "8"]
[White "Firouzja2003"]
[Black "Misi_95"]
[Result "1-0"]
[WhiteElo "3020"]
[BlackElo "2681"]
[TimeControl "180+1"]
[EndTime "11:30:23 PST"]
[Termination "Firouzja2003 won by resignation"]

1. d4 {[%clk 0:02:59.1]} 1... Nf6 {[%clk 0:02:58.3]} 2. Nf3 {[%clk 0:02:59.1]}
2... g6 {[%clk 0:02:55.4]} 3. Nbd2 {[%clk 0:02:58.5]} 3... Bg7 {[%clk
0:02:54.9]} 4. e4 {[%clk 0:02:58.5]} 4... O-O {[%clk 0:02:55.5]} 5. c3 {[%clk
0:02:59.4]} 5... d6 {[%clk 0:02:54.8]} 6. Bd3 {[%clk 0:03:00.3]} 6... e5 {[%clk
0:02:53.5]} 7. O-O {[%clk 0:03:00.3]} 7... Nc6 {[%clk 0:02:47.2]} 8. h3 {[%clk
0:02:59.4]} 8... Re8 {[%clk 0:02:46.6]} 9. Re1 {[%clk 0:02:59.6]} 9... Nd7
{[%clk 0:02:44.5]} 10. Nb3 {[%clk 0:02:58.4]} 10... a5 {[%clk 0:02:43.5]} 11.
Bg5 {[%clk 0:02:57.9]} 11... Bf6 {[%clk 0:02:41.2]} 12. Be3 {[%clk 0:02:56.9]}
12... a4 {[%clk 0:02:40.3]} 13. Nbd2 {[%clk 0:02:56.9]} 13... a3 {[%clk
0:02:39.9]} 14. b3 {[%clk 0:02:56.1]} 14... exd4 {[%clk 0:02:32.9]} 15. cxd4
{[%clk 0:02:56.2]} 15... Nb4 {[%clk 0:02:33]} 16. Bf1 {[%clk 0:02:54.2]} 16...
c6 {[%clk 0:02:12.8]} 17. Bf4 {[%clk 0:02:46]} 17... Nb6 {[%clk 0:02:11.7]} 18.
Nb1 {[%clk 0:02:44.7]} 18... c5 {[%clk 0:02:05.8]} 19. Nc3 {[%clk 0:02:41.9]}
19... Nc6 {[%clk 0:02:05.5]} 20. Nb5 {[%clk 0:02:40.9]} 20... cxd4 {[%clk
0:02:04]} 21. Nxd6 {[%clk 0:02:39.6]} 21... Re6 {[%clk 0:02:02.1]} 22. e5 {[%clk
0:02:34.2]} 22... Rxd6 {[%clk 0:01:59.4]} 23. exd6 {[%clk 0:02:31.4]} 23... Nd5
{[%clk 0:01:59.7]} 24. Bg3 {[%clk 0:02:31.5]} 24... Nc3 {[%clk 0:01:54.9]} 25.
Qd2 {[%clk 0:02:31.6]} 25... Bf5 {[%clk 0:01:52.8]} 26. Bd3 {[%clk 0:02:30.6]}
26... Be6 {[%clk 0:01:48.5]} 27. Ne5 {[%clk 0:02:26.4]} 27... Nxe5 {[%clk
0:01:40.6]} 28. Bxe5 {[%clk 0:02:27.3]} 28... Bxe5 {[%clk 0:01:41.2]} 29. Rxe5
{[%clk 0:02:28.2]} 29... Qxd6 {[%clk 0:01:41.7]} 30. Rae1 {[%clk 0:02:29.1]}
30... Rd8 {[%clk 0:01:33.3]} 31. h4 {[%clk 0:02:27.4]} 31... Nd5 {[%clk
0:01:30.8]} 32. h5 {[%clk 0:02:27.3]} 32... Qb4 {[%clk 0:01:29.9]} 33. Qh6
{[%clk 0:02:22.7]} 33... Qf8 {[%clk 0:01:29.9]} 34. Qd2 {[%clk 0:01:59.5]} 34...
Qb4 {[%clk 0:01:28.9]} 35. Qd1 {[%clk 0:01:59.2]} 35... Nf4 {[%clk 0:01:21.4]}
36. hxg6 {[%clk 0:01:58.6]} 36... hxg6 {[%clk 0:01:20.9]} 37. Qf3 {[%clk
0:01:38.5]} 37... Qd2 {[%clk 0:01:18.9]} 38. Rd1 {[%clk 0:01:33.8]} 38... Qxa2
{[%clk 0:01:16.4]} 39. Qxf4 {[%clk 0:01:33.7]} 39... Qxb3 {[%clk 0:01:16.8]} 40.
Ree1 {[%clk 0:01:34.3]} 40... a2 {[%clk 0:01:14.7]} 41. Qf6 {[%clk 0:01:34.9]}
41... Ra8 {[%clk 0:01:08.5]} 42. Qxd4 {[%clk 0:01:29.8]} 42... Qd5 {[%clk
0:00:55.1]} 43. Qf6 {[%clk 0:01:25.9]} 43... Qc6 {[%clk 0:00:45.4]} 44. Bxg6
{[%clk 0:01:25.1]} 44... Bb3 {[%clk 0:00:41.1]} 45. Rd8+ {[%clk 0:01:01.4]}
45... Rxd8 {[%clk 0:00:40.6]} 46. Qxd8+ {[%clk 0:01:02.2]} 46... Kg7 {[%clk
0:00:41.5]} 47. Be4 {[%clk 0:00:54.1]} 47... Qc3 {[%clk 0:00:39.4]} 48. Qg5+
{[%clk 0:00:53.1]} 48... Kf8 {[%clk 0:00:39.4]} 49. Qc1 {[%clk 0:00:52.4]} 49...
Qxc1 {[%clk 0:00:33.9]} 50. Rxc1 {[%clk 0:00:53.3]} 50... b5 {[%clk 0:00:34.4]}
51. Ra1 {[%clk 0:00:43.8]} 51... b4 {[%clk 0:00:33.4]} 52. Bb1 {[%clk
0:00:43.8]} 52... axb1=Q+ {[%clk 0:00:29]} 53. Rxb1 {[%clk 0:00:44.7]} 53... Be6
{[%clk 0:00:28.1]} 54. Rxb4 {[%clk 0:00:45.6]} 54... Ke7 {[%clk 0:00:25.9]} 55.
f3 {[%clk 0:00:46.3]} 55... Kf6 {[%clk 0:00:26.8]} 56. Kf2 {[%clk 0:00:46.6]}
56... Kg5 {[%clk 0:00:27.2]} 57. Kg3 {[%clk 0:00:46.5]} 57... Kf5 {[%clk
0:00:25.4]} 58. Rb5+ {[%clk 0:00:46.5]} 58... Kf6 {[%clk 0:00:25.8]} 59. Kf4
{[%clk 0:00:47.1]} 59... Kg6 {[%clk 0:00:26.5]} 60. Rb6 {[%clk 0:00:47.6]} 60...
Kf6 {[%clk 0:00:26.2]} 61. g4 {[%clk 0:00:47.7]} 61... Ke7 {[%clk 0:00:24.4]}
62. g5 {[%clk 0:00:45.4]} 62... Bd5 {[%clk 0:00:24.1]} 63. Rf6 {[%clk
0:00:46.3]} 63... Kf8 {[%clk 0:00:22]} 64. Ke5 {[%clk 0:00:46.5]} 64... Bb3
{[%clk 0:00:21]} 65. f4 {[%clk 0:00:47]} 65... Kg7 {[%clk 0:00:21.3]} 66. f5
{[%clk 0:00:47.4]} 66... Bc2 {[%clk 0:00:20.8]} 67. Rb6 {[%clk 0:00:47]} 67...
Bd3 {[%clk 0:00:20.6]} 68. Rb4 {[%clk 0:00:46.2]} 68... Bc2 {[%clk 0:00:19.5]}
69. Rb7 {[%clk 0:00:45.7]} 69... Bd3 {[%clk 0:00:18.4]} 70. Rb8 {[%clk
0:00:32.9]} 70... Bc4 {[%clk 0:00:18]} 71. f6+ {[%clk 0:00:33.5]} 71... Kg6
{[%clk 0:00:17.6]} 72. Rg8+ {[%clk 0:00:33.8]} 72... Kh5 {[%clk 0:00:18]} 73.
Rg7 {[%clk 0:00:34]} 73... Bb3 {[%clk 0:00:16.7]} 74. Kd6 {[%clk 0:00:34.3]}
74... Kg4 {[%clk 0:00:15.2]} 75. Ke7 {[%clk 0:00:35.2]} 75... Kf5 {[%clk
0:00:15.6]} 76. Rxf7 {[%clk 0:00:35.7]} 76... Kxg5 {[%clk 0:00:15.9]} 77. Rg7+
{[%clk 0:00:36.6]} 77... Kh6 {[%clk 0:00:16.3]} 78. Rg3 {[%clk 0:00:37.2]} 1-0

[Event "*** Titled Tuesday Blitz"]
[Site "Chess.com"]
[Date "2021.02.09"]
[Round "8"]
[White "Grineva_Marianna"]
[Black "JoachimMouhamad"]
[Result "0-1"]
[WhiteElo "2216"]
[BlackElo "2387"]
[TimeControl "180+1"]
[EndTime "11:30:29 PST"]
[Termination "JoachimMouhamad won on time"]

1. e4 {[%clk 0:03:00.9]} 1... e5 {[%clk 0:02:59]} 2. Nf3 {[%clk 0:02:58.7]} 2...
Nc6 {[%clk 0:02:57.3]} 3. Bb5 {[%clk 0:02:57.7]} 3... a6 {[%clk 0:02:57.6]} 4.
Ba4 {[%clk 0:02:57.5]} 4... Nf6 {[%clk 0:02:57.6]} 5. Qe2 {[%clk 0:02:56.8]}
5... b5 {[%clk 0:02:54.6]} 6. Bb3 {[%clk 0:02:56.3]} 6... Be7 {[%clk 0:02:55]}
7. c3 {[%clk 0:02:53.3]} 7... O-O {[%clk 0:02:53.8]} 8. d3 {[%clk 0:02:52.2]}
8... Re8 {[%clk 0:02:46.2]} 9. Nbd2 {[%clk 0:02:49.9]} 9... d5 {[%clk
0:02:44.9]} 10. Nf1 {[%clk 0:02:44.6]} 10... Bf8 {[%clk 0:02:34.2]} 11. h3
{[%clk 0:02:40.5]} 11... d4 {[%clk 0:02:21.9]} 12. a3 {[%clk 0:02:12.8]} 12...
a5 {[%clk 0:02:19.3]} 13. Ng3 {[%clk 0:02:06.8]} 13... g6 {[%clk 0:02:08]} 14.
O-O {[%clk 0:02:00.6]} 14... Be6 {[%clk 0:01:59.1]} 15. Bxe6 {[%clk 0:01:46.9]}
15... Rxe6 {[%clk 0:01:58.4]} 16. Ng5 {[%clk 0:01:47.4]} 16... Re8 {[%clk
0:01:56.3]} 17. f4 {[%clk 0:01:44.2]} 17... exf4 {[%clk 0:01:45.3]} 18. Bxf4
{[%clk 0:01:43.2]} 18... dxc3 {[%clk 0:01:45.4]} 19. bxc3 {[%clk 0:01:42.2]}
19... Bg7 {[%clk 0:01:41.6]} 20. d4 {[%clk 0:01:28.9]} 20... b4 {[%clk
0:01:38.9]} 21. axb4 {[%clk 0:01:25.6]} 21... axb4 {[%clk 0:01:37.4]} 22. Rxa8
{[%clk 0:01:25.2]} 22... Qxa8 {[%clk 0:01:36.9]} 23. d5 {[%clk 0:01:19.9]} 23...
Nxd5 {[%clk 0:01:34.2]} 24. Qc4 {[%clk 0:00:58.7]} 24... h6 {[%clk 0:01:04.9]}
25. Nxf7 {[%clk 0:00:53.5]} 25... Na5 {[%clk 0:01:05.3]} 26. Qxd5 {[%clk
0:00:44.5]} 26... Qxd5 {[%clk 0:01:05]} 27. exd5 {[%clk 0:00:44.8]} 27... bxc3
{[%clk 0:00:53.4]} 28. Nxh6+ {[%clk 0:00:38.8]} 28... Kh7 {[%clk 0:00:47.5]} 29.
Nf7 {[%clk 0:00:36.6]} 29... Bd4+ {[%clk 0:00:39.3]} 30. Kh1 {[%clk 0:00:34.8]}
30... Nb3 {[%clk 0:00:39.7]} 31. Ng5+ {[%clk 0:00:29.2]} 31... Kg8 {[%clk
0:00:38.6]} 32. Ne6 {[%clk 0:00:29.7]} 32... c2 {[%clk 0:00:24.4]} 33. Nxd4
{[%clk 0:00:26.1]} 33... Nxd4 {[%clk 0:00:25.3]} 34. Bxc7 {[%clk 0:00:23.8]}
34... Re3 {[%clk 0:00:10.8]} 35. Bf4 {[%clk 0:00:21.1]} 35... Rd3 {[%clk
0:00:09]} 36. d6 {[%clk 0:00:16.4]} 36... Rd1 {[%clk 0:00:06.6]} 37. d7 {[%clk
0:00:16.5]} 37... Ne6 {[%clk 0:00:06.9]} 38. Be5 {[%clk 0:00:12.6]} 38... Rxf1+
{[%clk 0:00:04.8]} 39. Nxf1 {[%clk 0:00:11.5]} 39... c1=Q {[%clk 0:00:05.7]} 40.
Kg1 {[%clk 0:00:11.2]} 40... Qd1 {[%clk 0:00:05.7]} 41. Bf6 {[%clk 0:00:10.2]}
41... Qxd7 {[%clk 0:00:05.6]} 42. Ng3 {[%clk 0:00:09.8]} 42... Qd3 {[%clk
0:00:06.5]} 43. Kh2 {[%clk 0:00:09.7]} 43... Kf7 {[%clk 0:00:07.1]} 44. Be5
{[%clk 0:00:09.2]} 44... Qd2 {[%clk 0:00:05.9]} 45. Bc7 {[%clk 0:00:08.4]} 45...
Qa2 {[%clk 0:00:06]} 46. Be5 {[%clk 0:00:08.3]} 46... g5 {[%clk 0:00:06.9]} 47.
Nf5 {[%clk 0:00:07.2]} 47... Nf4 {[%clk 0:00:07]} 48. Bxf4 {[%clk 0:00:06.8]}
48... gxf4 {[%clk 0:00:07.9]} 49. Nh4 {[%clk 0:00:07.1]} 49... Kf6 {[%clk
0:00:07.9]} 50. Nf3 {[%clk 0:00:07.6]} 50... Kf5 {[%clk 0:00:08.2]} 51. h4
{[%clk 0:00:08.2]} 51... Qf2 {[%clk 0:00:07.3]} 52. h5 {[%clk 0:00:07.7]} 52...
Kg4 {[%clk 0:00:07.3]} 53. h6 {[%clk 0:00:07.2]} 53... Qa7 {[%clk 0:00:05.4]}
54. Ne5+ {[%clk 0:00:06.1]} 54... Kg5 {[%clk 0:00:05.4]} 55. Nf3+ {[%clk
0:00:05.6]} 55... Kxh6 {[%clk 0:00:05.7]} 56. Kh3 {[%clk 0:00:05.6]} 56... Kg6
{[%clk 0:00:06]} 57. Kg4 {[%clk 0:00:05.7]} 57... Qa4 {[%clk 0:00:05.7]} 58.
Ne5+ {[%clk 0:00:05.3]} 58... Kf6 {[%clk 0:00:06.3]} 59. Nf3 {[%clk 0:00:05.8]}
59... Ke6 {[%clk 0:00:06.6]} 60. Ng5+ {[%clk 0:00:05.8]} 60... Ke5 {[%clk
0:00:06.8]} 61. Nf3+ {[%clk 0:00:06.3]} 61... Ke4 {[%clk 0:00:07.4]} 62. Ng5+
{[%clk 0:00:05.8]} 62... Ke3 {[%clk 0:00:07.9]} 63. Nf3 {[%clk 0:00:03]} 63...
Qc2 {[%clk 0:00:07.7]} 64. Nh4 {[%clk 0:00:01]} 64... Qe2+ {[%clk 0:00:07.6]}
0-1

[Event "*** Titled Tuesday Blitz"]
[Site "Chess.com"]
[Date "2021.02.09"]
[Round "8"]
[White "nrvisakh"]
[Black "MPGM"]
[Result "1/2-1/2"]
[WhiteElo "2758"]
[BlackElo "2625"]
[TimeControl "180+1"]
[EndTime "11:30:30 PST"]
[Termination "Game drawn by repetition"]

1. Nf3 {[%clk 0:03:00.9]} 1... d5 {[%clk 0:02:58.2]} 2. c4 {[%clk 0:02:59.3]}
2... e6 {[%clk 0:02:57.2]} 3. g3 {[%clk 0:02:57]} 3... Nf6 {[%clk 0:02:55.3]} 4.
Bg2 {[%clk 0:02:56.9]} 4... c5 {[%clk 0:02:54.7]} 5. cxd5 {[%clk 0:02:54.5]}
5... exd5 {[%clk 0:02:54.5]} 6. O-O {[%clk 0:02:53.6]} 6... Nc6 {[%clk
0:02:54.1]} 7. d4 {[%clk 0:02:53.7]} 7... Be7 {[%clk 0:02:53.9]} 8. Nc3 {[%clk
0:02:51.7]} 8... O-O {[%clk 0:02:53.4]} 9. dxc5 {[%clk 0:02:50.1]} 9... Bxc5
{[%clk 0:02:52.6]} 10. Bg5 {[%clk 0:02:49.6]} 10... d4 {[%clk 0:02:53]} 11. Bxf6
{[%clk 0:02:41.3]} 11... Qxf6 {[%clk 0:02:53.9]} 12. Ne4 {[%clk 0:02:41.4]}
12... Qe7 {[%clk 0:02:54.3]} 13. Nxc5 {[%clk 0:02:40.3]} 13... Qxc5 {[%clk
0:02:55.2]} 14. Rc1 {[%clk 0:02:40.8]} 14... Qb6 {[%clk 0:02:53.1]} 15. Qd2
{[%clk 0:02:41.1]} 15... Bf5 {[%clk 0:02:28.8]} 16. Rfd1 {[%clk 0:02:35.8]}
16... Rad8 {[%clk 0:02:25.8]} 17. a3 {[%clk 0:02:11.5]} 17... a5 {[%clk
0:02:20.4]} 18. h4 {[%clk 0:01:59.7]} 18... h6 {[%clk 0:02:18]} 19. Ne1 {[%clk
0:01:53.5]} 19... Rfe8 {[%clk 0:02:12.3]} 20. Nd3 {[%clk 0:01:53.3]} 20... Bg4
{[%clk 0:02:05.7]} 21. Re1 {[%clk 0:01:50.5]} 21... Re7 {[%clk 0:01:51.2]} 22.
b4 {[%clk 0:01:43.3]} 22... axb4 {[%clk 0:01:50.3]} 23. axb4 {[%clk 0:01:43.3]}
23... Rde8 {[%clk 0:01:48.3]} 24. Bf3 {[%clk 0:01:29.7]} 24... Bf5 {[%clk
0:01:25.8]} 25. b5 {[%clk 0:01:21.3]} 25... Ne5 {[%clk 0:01:14.5]} 26. Nxe5
{[%clk 0:01:21.5]} 26... Rxe5 {[%clk 0:01:14.7]} 27. Red1 {[%clk 0:01:21.8]}
27... d3 {[%clk 0:01:06]} 28. exd3 {[%clk 0:01:17.6]} 28... Rxb5 {[%clk
0:01:06]} 29. Re1 {[%clk 0:00:59.6]} 29... Rd8 {[%clk 0:00:56.2]} 30. Be4 {[%clk
0:00:59.6]} 30... Bxe4 {[%clk 0:00:48.6]} 31. Rxe4 {[%clk 0:01:00.5]} 31... Rbd5
{[%clk 0:00:46.7]} 32. Rce1 {[%clk 0:00:58]} 32... Qb5 {[%clk 0:00:34.1]} 33. d4
{[%clk 0:00:56.1]} 33... Qd7 {[%clk 0:00:34.3]} 34. Qf4 {[%clk 0:00:53.2]} 34...
Rf5 {[%clk 0:00:26]} 35. Qe3 {[%clk 0:00:43]} 35... Rd5 {[%clk 0:00:17.3]} 36.
Qf4 {[%clk 0:00:40.5]} 36... Rf5 {[%clk 0:00:17]} 37. Qg4 {[%clk 0:00:30.4]}
37... h5 {[%clk 0:00:16.4]} 38. Qe2 {[%clk 0:00:28]} 38... g6 {[%clk 0:00:14.1]}
39. Qe3 {[%clk 0:00:24.9]} 39... Rd5 {[%clk 0:00:13.1]} 40. Re7 {[%clk
0:00:21.7]} 40... Qf5 {[%clk 0:00:12.5]} 41. Rxb7 {[%clk 0:00:14.2]} 41... Rxd4
{[%clk 0:00:12.2]} 42. Re7 {[%clk 0:00:14.6]} 42... Rd3 {[%clk 0:00:11.7]} 43.
Qh6 {[%clk 0:00:09.5]} 43... Rd1 {[%clk 0:00:05.9]} 44. Qe3 {[%clk 0:00:06.9]}
44... Rxe1+ {[%clk 0:00:06]} 45. Qxe1 {[%clk 0:00:06.6]} 45... Rd6 {[%clk
0:00:05]} 46. Re8+ {[%clk 0:00:06.3]} 46... Kg7 {[%clk 0:00:05.3]} 47. Qa1+
{[%clk 0:00:05.7]} 47... Rf6 {[%clk 0:00:05.1]} 48. Qe1 {[%clk 0:00:05.8]} 48...
Rd6 {[%clk 0:00:04.2]} 49. Re3 {[%clk 0:00:05.6]} 49... Rf6 {[%clk 0:00:04.1]}
50. Re2 {[%clk 0:00:05.4]} 50... Qg4 {[%clk 0:00:04.1]} 51. Kg2 {[%clk
0:00:05.3]} 51... Qf3+ {[%clk 0:00:04.1]} 52. Kg1 {[%clk 0:00:05.6]} 52... Rd6
{[%clk 0:00:03.9]} 53. Re3 {[%clk 0:00:05]} 53... Qd1 {[%clk 0:00:02.9]} 54.
Qxd1 {[%clk 0:00:05.3]} 54... Rxd1+ {[%clk 0:00:03.8]} 55. Kg2 {[%clk
0:00:06.2]} 55... Rd6 {[%clk 0:00:04.4]} 56. Rf3 {[%clk 0:00:06]} 56... Rf6
{[%clk 0:00:05]} 57. Re3 {[%clk 0:00:05.6]} 57... Rf5 {[%clk 0:00:05.4]} 58. Rd3
{[%clk 0:00:05.9]} 58... Ra5 {[%clk 0:00:05.7]} 59. Re3 {[%clk 0:00:06.2]} 59...
Rb5 {[%clk 0:00:06.3]} 60. Rf3 {[%clk 0:00:06.6]} 60... Ra5 {[%clk 0:00:06.7]}
61. Re3 {[%clk 0:00:07]} 61... Rb5 {[%clk 0:00:07.2]} 62. Rf3 {[%clk 0:00:07.5]}
62... Ra5 {[%clk 0:00:07.6]} 63. Re3 {[%clk 0:00:08]} 1/2-1/2

[Event "*** Titled Tuesday Blitz"]
[Site "Chess.com"]
[Date "2021.02.09"]
[Round "8"]
[White "ural58"]
[Black "RobertoJBM"]
[Result "0-1"]
[WhiteElo "2500"]
[BlackElo "2726"]
[TimeControl "180+1"]
[EndTime "11:30:32 PST"]
[Termination "RobertoJBM won by resignation"]

1. e4 {[%clk 0:03:00.9]} 1... c6 {[%clk 0:02:52.7]} 2. b3 {[%clk 0:03:00.7]}
2... d5 {[%clk 0:02:53.6]} 3. Qe2 {[%clk 0:03:01]} 3... dxe4 {[%clk 0:02:53.3]}
4. Nc3 {[%clk 0:03:01.1]} 4... Nf6 {[%clk 0:02:52.7]} 5. Nxe4 {[%clk 0:03:01.3]}
5... Nxe4 {[%clk 0:02:51]} 6. Qxe4 {[%clk 0:03:01.5]} 6... Qd5 {[%clk
0:02:49.3]} 7. Qe3 {[%clk 0:02:59.1]} 7... Bf5 {[%clk 0:02:44.3]} 8. Bb2 {[%clk
0:02:58.3]} 8... Nd7 {[%clk 0:02:32.8]} 9. O-O-O {[%clk 0:02:55.6]} 9... e6
{[%clk 0:02:24.6]} 10. Nf3 {[%clk 0:02:49.1]} 10... Qe4 {[%clk 0:02:05.4]} 11.
d3 {[%clk 0:02:46.3]} 11... Qxe3+ {[%clk 0:02:04]} 12. fxe3 {[%clk 0:02:47.2]}
12... f6 {[%clk 0:01:57.6]} 13. h3 {[%clk 0:02:43.3]} 13... e5 {[%clk
0:01:56.9]} 14. d4 {[%clk 0:02:42.4]} 14... exd4 {[%clk 0:01:49.8]} 15. exd4
{[%clk 0:02:42.4]} 15... O-O-O {[%clk 0:01:43.3]} 16. Bc4 {[%clk 0:02:40.3]}
16... Nb6 {[%clk 0:01:39.8]} 17. Be2 {[%clk 0:02:30.5]} 17... Bd6 {[%clk
0:01:38.4]} 18. Nh4 {[%clk 0:02:27.2]} 18... Be4 {[%clk 0:01:20.2]} 19. Bf3
{[%clk 0:02:20.4]} 19... Rhe8 {[%clk 0:01:15.4]} 20. Rhe1 {[%clk 0:02:14.8]}
20... Bf4+ {[%clk 0:01:11.7]} 21. Kb1 {[%clk 0:02:14.9]} 21... Bxf3 {[%clk
0:01:11.2]} 22. Nxf3 {[%clk 0:02:14.3]} 22... Bg3 {[%clk 0:01:04.3]} 23. Rxe8
{[%clk 0:02:04.9]} 23... Rxe8 {[%clk 0:01:05.2]} 24. c4 {[%clk 0:02:05.1]} 24...
Nd7 {[%clk 0:00:58.6]} 25. Kc2 {[%clk 0:02:03.8]} 25... g6 {[%clk 0:00:52.4]}
26. Kd3 {[%clk 0:02:03.4]} 26... f5 {[%clk 0:00:52.5]} 27. Bc1 {[%clk 0:02:01]}
27... Nf6 {[%clk 0:00:51.5]} 28. Bd2 {[%clk 0:01:47.2]} 28... Ne4 {[%clk
0:00:50.7]} 29. Be1 {[%clk 0:01:45.8]} 29... Bd6 {[%clk 0:00:46]} 30. c5 {[%clk
0:01:39]} 30... Bc7 {[%clk 0:00:43.6]} 31. b4 {[%clk 0:01:38.8]} 31... a6 {[%clk
0:00:40.9]} 32. a4 {[%clk 0:01:38.6]} 32... Nf6 {[%clk 0:00:40.8]} 33. Kc4
{[%clk 0:01:27.2]} 33... Nd5 {[%clk 0:00:39.2]} 34. Bf2 {[%clk 0:01:15]} 34...
Bf4 {[%clk 0:00:31.4]} 35. g3 {[%clk 0:01:11.8]} 35... Re2 {[%clk 0:00:29.8]}
36. Be1 {[%clk 0:00:37.4]} 36... Bh6 {[%clk 0:00:15.3]} 37. Rd3 {[%clk
0:00:30.6]} 37... Kd7 {[%clk 0:00:11.1]} 38. Ne5+ {[%clk 0:00:29.6]} 38... Ke6
{[%clk 0:00:10.1]} 39. Bc3 {[%clk 0:00:27.1]} 39... Bg7 {[%clk 0:00:09.4]} 40.
Kb3 {[%clk 0:00:24.7]} 40... Bxe5 {[%clk 0:00:08.9]} 41. dxe5 {[%clk 0:00:24.9]}
41... Re3 {[%clk 0:00:08.4]} 42. Rxe3 {[%clk 0:00:16.7]} 42... Nxe3 {[%clk
0:00:09.3]} 43. b5 {[%clk 0:00:14.2]} 43... axb5 {[%clk 0:00:09]} 44. axb5
{[%clk 0:00:14.2]} 44... Nf1 {[%clk 0:00:08.9]} 45. Be1 {[%clk 0:00:13.5]} 45...
Kxe5 {[%clk 0:00:08.6]} 46. Kb4 {[%clk 0:00:13.7]} 46... Kd5 {[%clk 0:00:08.7]}
47. Bf2 {[%clk 0:00:12.6]} 47... Nd2 {[%clk 0:00:08.5]} 48. Ka5 {[%clk
0:00:12.8]} 48... Nc4+ {[%clk 0:00:07.9]} 49. Kb4 {[%clk 0:00:12.6]} 49... Ne5
{[%clk 0:00:08.5]} 50. Ka5 {[%clk 0:00:12.2]} 50... Nd7 {[%clk 0:00:09.1]} 51.
h4 {[%clk 0:00:09.8]} 51... Nxc5 {[%clk 0:00:08.6]} 52. Kb6 {[%clk 0:00:08.8]}
52... Nd7+ {[%clk 0:00:08.9]} 53. Kxb7 {[%clk 0:00:08]} 53... cxb5 {[%clk
0:00:09.3]} 54. Kc7 {[%clk 0:00:08.5]} 54... Ne5 {[%clk 0:00:09.3]} 55. Kd8
{[%clk 0:00:08]} 55... b4 {[%clk 0:00:09.7]} 56. Be1 {[%clk 0:00:08.6]} 56... b3
{[%clk 0:00:09.9]} 57. Bc3 {[%clk 0:00:08.8]} 57... Nc4 {[%clk 0:00:09.5]} 58.
Ke7 {[%clk 0:00:09.2]} 58... b2 {[%clk 0:00:09.8]} 59. Bxb2 {[%clk 0:00:09.7]}
59... Nxb2 {[%clk 0:00:10.7]} 60. Kf6 {[%clk 0:00:10.3]} 60... Nd3 {[%clk
0:00:09.2]} 61. h5 {[%clk 0:00:10.6]} 61... Ne5 {[%clk 0:00:07.9]} 62. Kg7
{[%clk 0:00:08.3]} 62... gxh5 {[%clk 0:00:07.5]} 63. Kxh7 {[%clk 0:00:08.4]}
63... Ke4 {[%clk 0:00:08.1]} 64. Kh6 {[%clk 0:00:08.4]} 64... Kf3 {[%clk
0:00:08.3]} 65. Kg5 {[%clk 0:00:08.4]} 65... Kxg3 {[%clk 0:00:08.7]} 66. Kxf5
{[%clk 0:00:09]} 66... h4 {[%clk 0:00:08.9]} 0-1

[Event "*** Titled Tuesday Blitz"]
[Site "Chess.com"]
[Date "2021.02.09"]
[Round "8"]
[White "HouseOfDurin"]
[Black "MarceloPlaya"]
[Result "1-0"]
[WhiteElo "2120"]
[BlackElo "2268"]
[TimeControl "180+1"]
[EndTime "11:30:34 PST"]
[Termination "HouseOfDurin won on time"]

1. d4 {[%clk 0:03:00.9]} 1... e6 {[%clk 0:02:59.5]} 2. h4 {[%clk 0:03:00]} 2...
c5 {[%clk 0:02:57.9]} 3. Bg5 {[%clk 0:02:59.1]} 3... f6 {[%clk 0:02:55.4]} 4.
Be3 {[%clk 0:02:56.1]} 4... cxd4 {[%clk 0:02:51]} 5. Bxd4 {[%clk 0:02:53.3]}
5... Nc6 {[%clk 0:02:50.9]} 6. Bc3 {[%clk 0:02:52.2]} 6... d5 {[%clk 0:02:46.9]}
7. e3 {[%clk 0:02:51.1]} 7... Bb4 {[%clk 0:02:41]} 8. a3 {[%clk 0:02:48.8]} 8...
Bxc3+ {[%clk 0:02:39.8]} 9. Nxc3 {[%clk 0:02:49.7]} 9... Nge7 {[%clk 0:02:40.1]}
10. Qh5+ {[%clk 0:02:42.9]} 10... g6 {[%clk 0:02:36.1]} 11. Qh6 {[%clk
0:02:42.1]} 11... Nf5 {[%clk 0:02:34.2]} 12. Qf4 {[%clk 0:02:40.7]} 12... O-O
{[%clk 0:02:30.2]} 13. O-O-O {[%clk 0:02:37.4]} 13... Qd6 {[%clk 0:02:18.3]} 14.
Qxd6 {[%clk 0:02:35.1]} 14... Nxd6 {[%clk 0:02:16.6]} 15. f3 {[%clk 0:02:32.9]}
15... Bd7 {[%clk 0:02:13.2]} 16. Nge2 {[%clk 0:02:32.4]} 16... Nf5 {[%clk
0:02:06.2]} 17. e4 {[%clk 0:02:20.5]} 17... Ne3 {[%clk 0:02:04.4]} 18. Rd3
{[%clk 0:01:25]} 18... Nxf1 {[%clk 0:01:58.2]} 19. Rxf1 {[%clk 0:01:24.6]} 19...
Ne5 {[%clk 0:01:36.4]} 20. Rd4 {[%clk 0:01:15.9]} 20... Nc6 {[%clk 0:01:01.7]}
21. Rdd1 {[%clk 0:01:15.1]} 21... Rfe8 {[%clk 0:00:57.3]} 22. exd5 {[%clk
0:01:07.5]} 22... exd5 {[%clk 0:00:55.9]} 23. Nd4 {[%clk 0:01:08.1]} 23... Rad8
{[%clk 0:00:48.4]} 24. Nxd5 {[%clk 0:01:06.5]} 24... Nxd4 {[%clk 0:00:44.4]} 25.
Rxd4 {[%clk 0:01:01.9]} 25... Be6 {[%clk 0:00:37]} 26. Nxf6+ {[%clk 0:00:56.8]}
26... Kf7 {[%clk 0:00:35.2]} 27. Rxd8 {[%clk 0:00:53.8]} 27... Rxd8 {[%clk
0:00:35.1]} 28. Nxh7 {[%clk 0:00:54.4]} 28... Bf5 {[%clk 0:00:31.6]} 29. Ng5+
{[%clk 0:00:53.3]} 29... Kf6 {[%clk 0:00:31.2]} 30. Ne4+ {[%clk 0:00:51.4]}
30... Ke5 {[%clk 0:00:30.3]} 31. g4 {[%clk 0:00:48.9]} 31... Bc8 {[%clk
0:00:28]} 32. h5 {[%clk 0:00:40.9]} 32... gxh5 {[%clk 0:00:27.1]} 33. gxh5
{[%clk 0:00:41.8]} 33... Rh8 {[%clk 0:00:26.9]} 34. Rg1 {[%clk 0:00:32.1]} 34...
Rxh5 {[%clk 0:00:23.6]} 35. Rg5+ {[%clk 0:00:31.1]} 35... Rxg5 {[%clk
0:00:22.1]} 36. Nxg5 {[%clk 0:00:32]} 36... Kf4 {[%clk 0:00:22.1]} 37. Nf7
{[%clk 0:00:31.5]} 37... b6 {[%clk 0:00:17.7]} 38. Nd6 {[%clk 0:00:30.1]} 38...
Bd7 {[%clk 0:00:17.1]} 39. Kd2 {[%clk 0:00:21.6]} 39... Kxf3 {[%clk 0:00:16.9]}
40. Kd3 {[%clk 0:00:21.8]} 40... Kf4 {[%clk 0:00:14.1]} 41. Kd4 {[%clk
0:00:21.9]} 41... Kg5 {[%clk 0:00:13.1]} 42. Kd5 {[%clk 0:00:18.5]} 42... Kf6
{[%clk 0:00:13]} 43. c4 {[%clk 0:00:17.7]} 43... Ke7 {[%clk 0:00:12.6]} 44. Nb5
{[%clk 0:00:17.3]} 44... a5 {[%clk 0:00:09.6]} 45. Nc7 {[%clk 0:00:14.5]} 45...
Kd8 {[%clk 0:00:08.5]} 46. Ne6+ {[%clk 0:00:14.2]} 46... Kc8 {[%clk 0:00:07.8]}
47. Nd4 {[%clk 0:00:12.9]} 47... Be8 {[%clk 0:00:07.2]} 48. Kd6 {[%clk
0:00:12.3]} 48... Kb7 {[%clk 0:00:06.9]} 49. b3 {[%clk 0:00:12.2]} 49... Bg6
{[%clk 0:00:06.2]} 50. b4 {[%clk 0:00:11.2]} 50... Bd3 {[%clk 0:00:05.4]} 51. c5
{[%clk 0:00:09.9]} 51... bxc5 {[%clk 0:00:04.7]} 52. bxc5 {[%clk 0:00:09.7]}
52... Be4 {[%clk 0:00:04.9]} 53. c6+ {[%clk 0:00:09.1]} 53... Kc8 {[%clk
0:00:04.7]} 54. Kc5 {[%clk 0:00:08.4]} 54... Bg2 {[%clk 0:00:03.4]} 55. Kb6
{[%clk 0:00:06.9]} 55... a4 {[%clk 0:00:03.4]} 56. Kb5 {[%clk 0:00:06.6]} 56...
Kc7 {[%clk 0:00:03.5]} 57. Ne6+ {[%clk 0:00:06]} 57... Kd6 {[%clk 0:00:02.8]}
58. c7 {[%clk 0:00:04.5]} 58... Kd7 {[%clk 0:00:02.6]} 59. Kxa4 {[%clk
0:00:03.5]} 59... Bb7 {[%clk 0:00:01]} 60. Kb5 {[%clk 0:00:03.2]} 1-0